bitfinex-derivatives/quotes_SOLF0:USTF0_20250312
["timestamp","ask_amount","ask_price","bid_price","bid_amount"]
[1741757490368,0.05704339,122.45,122.43,8.1693]
[1741757491364,245.1,122.54,122.43,209.98596951]
[1741757491560,276.46,122.54,122.46,17.52596951]
[1741757491861,276.46,122.54,122.46,238.88596951]
[1741757492069,276.46,122.54,122.48,17.52596951]
[1741757492464,8.1628,122.53,122.5,0.05466379]
[1741757492770,31.36,122.56,122.5,0.05466379]
[1741757492971,17.52596951,122.55,122.5,0.05466379]
[1741757493975,8.164,122.51,122.5,0.05466379]
[1741757494477,48.86596951,122.53,122.46,190.0]
[1741757494663,4.2186,122.52,122.46,190.0]
[1741757494969,17.52596951,122.51,122.44,31.34]
[1741757495169,31.34,122.5,122.41,207.52596951]
[1741757495364,17.58606844,122.49,122.46,0.0586122]
[1741757495569,8.167,122.47,122.46,0.0586122]
[1741757495873,0.06009893,122.49,122.46,0.0586122]
[1741757496271,8.22579893,122.49,122.46,0.0586122]
[1741757496471,0.06009893,122.49,122.46,0.0586122]
[1741757496869,0.06009893,122.49,122.46,8.2257122]
[1741757497477,0.06009893,122.49,122.47,8.1667]
[1741757497977,1.4207271,122.58,122.47,19.96596951]
[1741757498176,48.86596951,122.59,122.5,17.52596951]
[1741757498364,31.34,122.58,122.5,48.86596951]
[1741757498572,2.0106,122.58,122.5,48.86596951]
[1741757499173,2.0106,122.58,122.53,0.06107308]
[1741757499479,2.0892,122.57,122.53,0.06107308]
[1741757499680,8.1612,122.56,122.53,0.06107308]
[1741757500179,8.162,122.54,122.53,0.06107308]
[1741757500378,31.34,122.56,122.47,190.0]
[1741757500379,19.64516951,122.55,122.47,207.52596951]
[1741757500575,19.64516951,122.55,122.47,190.0]
[1741757500876,17.52596951,122.49,122.42,192.2098]
[1741757501172,48.86596951,122.49,122.42,190.0]
[1741757501369,0.0605466,122.47,122.44,0.053003]
[1741757502672,0.0605466,122.47,122.45,8.168]
[1741757503072,0.0605466,122.47,122.44,0.053003]
[1741757503268,0.0605466,122.47,122.45,8.1675]
[1741757503473,0.0605466,122.47,122.44,0.053003]
[1741757504575,0.0605466,122.47,122.46,8.1674]
[1741757504777,0.0605466,122.47,122.44,0.053003]
[1741757505079,0.0605466,122.47,122.45,8.1676]
[1741757506378,0.0605466,122.47,122.44,0.053003]
[1741757506774,0.0605466,122.47,122.44,8.221103]
[1741757507379,0.0605466,122.47,122.44,0.053003]
[1741757508077,0.0605466,122.47,122.46,8.1674]
[1741757508578,0.0605466,122.47,122.44,0.053003]
[1741757508579,0.0605466,122.47,122.45,8.1677]
[1741757509780,0.0605466,122.47,122.44,0.053003]
[1741757509981,0.0605466,122.47,122.46,8.1674]
[1741757511280,0.0605466,122.47,122.45,8.1679]
[1741757511881,0.0605466,122.47,122.44,8.221503]
[1741757512082,0.0605466,122.47,122.44,0.053003]
[1741757512778,0.0605466,122.47,122.44,8.221303]
[1741757512983,0.0605466,122.47,122.44,0.053003]
[1741757513383,0.0605466,122.47,122.45,8.1676]
[1741757513584,0.0605466,122.47,122.44,0.053003]
[1741757513982,0.0605466,122.47,122.44,8.221303]
[1741757514182,0.0605466,122.47,122.44,0.053003]
[1741757514780,0.0605466,122.47,122.44,8.221303]
[1741757515585,17.52596951,122.45,122.38,190.0]
[1741757515780,31.34,122.44,122.38,190.0]
[1741757516381,245.0,122.49,122.41,17.52596951]
[1741757516684,245.0,122.49,122.44,0.0564289]
[1741757516685,0.05826528,122.46,122.44,0.0564289]
[1741757517984,0.05826528,122.46,122.45,8.168]
[1741757519282,6.528e-05,122.46,122.45,25.69396951]
[1741757519682,6.528e-05,122.46,122.45,57.03396951]
[1741757522791,33.4064,122.53,122.5,8.1645]
[1741757523394,2.0664,122.53,122.5,8.1645]
[1741757523589,2.0664,122.53,122.5,8.1643]
[1741757524093,2.12832287,122.53,122.5,8.22065108]
[1741757525291,0.06192287,122.53,122.5,8.22065108]
[1741757525594,0.06192287,122.53,122.5,0.05635108]
[1741757525987,8.22472287,122.53,122.5,0.05635108]
[1741757526384,0.06192287,122.53,122.5,0.05635108]
[1741757526592,0.06192287,122.53,122.5,8.22095108]
[1741757527190,17.58789238,122.53,122.5,0.05635108]
[1741757527390,17.58789238,122.53,122.45,221.34]
[1741757527593,17.52596951,122.53,122.45,190.0]
[1741757528196,8.1644,122.51,122.47,8.1665]
[1741757528391,31.32,122.51,122.47,8.1665]
[1741757528591,0.05499215,122.5,122.48,0.05408275]
[1741757529595,8.21999215,122.5,122.48,0.05408275]
[1741757530489,8.1654,122.49,122.46,8.1669]
[1741757530796,0.05499215,122.5,122.45,8.1679]
[1741757530993,8.21999215,122.5,122.43,31.32]
[1741757531587,8.1655,122.49,122.46,8.1667]
[1741757531793,8.1655,122.49,122.45,0.05434612]
[1741757531993,17.52596951,122.51,122.45,0.05434612]
[1741757532193,0.05252145,122.48,122.45,8.22204612]
[1741757532399,0.05252145,122.48,122.45,0.05434612]
[1741757532795,2.07282145,122.48,122.45,0.05434612]
[1741757533501,8.167,122.47,122.45,0.05434612]
[1741757533693,2.07282145,122.48,122.45,0.05434612]
[1741757533997,10.23932145,122.48,122.45,8.22224612]
[1741757534695,0.05252145,122.48,122.45,0.05434612]
[1741757534996,0.05252145,122.48,122.47,17.52596951]
[1741757535199,0.05252145,122.48,122.47,57.01346951]
[1741757535396,0.05252145,122.48,122.47,39.4875]
[1741757537890,4.2701,122.53,122.47,48.84596951]
[1741757537891,2.2057,122.53,122.47,48.84596951]
[1741757538101,2.0692,122.54,122.47,48.84596951]
[1741757539093,0.05311092,122.52,122.49,0.05326582]
[1741757540304,0.05311092,122.52,122.49,8.21886582]
[1741757541198,0.05311092,122.52,122.49,0.05326582]
[1741757541398,0.05311092,122.52,122.5,8.1654]
[1741757541598,0.05311092,122.52,122.49,0.05326582]
[1741757541800,0.05311092,122.52,122.51,8.1648]
[1741757545905,0.05311092,122.52,122.5,8.1652]
[1741757546105,0.05311092,122.52,122.49,0.05326582]
[1741757547106,0.05311092,122.52,122.5,8.1648]
[1741757547507,0.05311092,122.52,122.49,0.05326582]
[1741757548209,0.05311092,122.52,122.5,8.1651]
[1741757548508,0.05311092,122.52,122.49,0.05326582]
[1741757548708,0.05311092,122.52,122.49,8.21906582]
[1741757549108,0.05311092,122.52,122.49,0.05326582]
[1741757549309,0.05311092,122.52,122.49,8.21906582]
[1741757549702,0.05311092,122.52,122.5,8.1654]
[1741757551411,0.05311092,122.52,122.49,0.05326582]
[1741757551610,0.05311092,122.52,122.49,8.21906582]
[1741757552106,8.21761092,122.52,122.49,8.21906582]
[1741757552813,0.05311092,122.52,122.49,8.21906582]
[1741757553416,8.21731092,122.52,122.49,8.21906582]
[1741757554616,0.05311092,122.52,122.5,8.1654]
[1741757555916,17.52596951,122.51,122.49,0.05326582]
[1741757556116,23.76596951,122.51,122.49,0.05326582]
[1741757556509,8.1655,122.5,122.49,0.05326582]
[1741757557014,23.76596951,122.51,122.46,190.0]
[1741757557210,23.76596951,122.51,122.43,31.32]
[1741757557416,23.76596951,122.51,122.45,8.1685]
[1741757557616,23.76596951,122.51,122.43,31.32]
[1741757558017,23.76596951,122.51,122.46,0.06240633]
[1741757558224,8.22978161,122.48,122.46,0.06240633]
[1741757558522,0.06238161,122.48,122.46,0.06240633]
[1741757558918,8.1675,122.47,122.46,0.06240633]
[1741757560218,8.1688,122.46,122.4,221.32]
[1741757560417,8.1688,122.46,122.42,8.1707]
[1741757561218,17.52596951,122.47,122.4,221.32]
[1741757561418,0.05302219,122.45,122.43,0.05615919]
[1741757562823,0.05302219,122.45,122.44,8.1695]
[1741757568327,4.182,122.51,122.43,31.37615919]
[1741757568626,4.182,122.51,122.43,31.32]
[1741757568627,17.52596951,122.49,122.43,31.32]
[1741757569026,17.52596951,122.47,122.4,190.0]
[1741757569227,48.84596951,122.47,122.4,190.0]
[1741757569432,0.0612851,122.45,122.42,0.05372708]
[1741757570128,17.58725461,122.45,122.42,0.05372708]
[1741757570328,17.52596951,122.43,122.42,0.05372708]
[1741757570630,17.52596951,122.43,122.4,198.1719]
[1741757571321,25.69626951,122.43,122.4,8.1719]
[1741757571526,17.52596951,122.43,122.41,8.1714]
[1741757572131,31.32,122.44,122.4,0.06113176]
[1741757572631,31.32,122.44,122.43,8.1702]
[1741757573330,0.0612851,122.45,122.44,8.1695]
[1741757574431,245.0,122.49,122.43,17.58613055]
[1741757574735,2.1928,122.51,122.45,17.52596951]
[1741757574935,42.65429339,122.53,122.51,8.1646]
[1741757575143,11.33429339,122.53,122.51,8.1646]
[1741757575636,11.38999669,122.53,122.51,8.21953844]
[1741757576031,11.38999669,122.53,122.51,0.05493844]
[1741757576230,0.0557033,122.53,122.51,0.05493844]
[1741757577842,17.58167281,122.53,122.51,0.05493844]
[1741757578044,17.58167281,122.53,122.45,48.84596951]
[1741757578240,17.52596951,122.53,122.49,8.1661]
[1741757579035,17.52596951,122.53,122.5,0.06039352]
[1741757579243,0.060722,122.52,122.5,8.22589352]
[1741757580445,0.060722,122.52,122.5,0.06039352]
[1741757581039,0.060722,122.52,122.5,8.22549352]
[1741757581244,0.060722,122.52,122.5,0.06039352]
[1741757581638,0.060722,122.52,122.5,8.22559352]
[1741757582341,0.060722,122.52,122.51,8.1648]
[1741757586341,31.360722,122.52,122.5,0.06039352]
[1741757588943,0.060722,122.52,122.5,0.06039352]
[1741757589149,31.46695961,122.62,122.51,35.05193902]
[1741757589446,28.8602629,122.62,122.53,17.52596951]
[1741757589840,17.52596951,122.58,122.52,4.2319]
[1741757590041,48.82596951,122.58,122.51,190.0]
[1741757590247,0.05385987,122.56,122.54,0.05224841]
[1741757590437,0.05385987,122.56,122.46,27.97964478]
[1741757590438,31.3,122.55,122.46,221.3]
[1741757590647,36.14294478,122.54,122.48,8.1666]
[1741757591751,0.05442371,122.52,122.5,0.06202421]
[1741757591945,31.35442371,122.52,122.5,0.06202421]
[1741757596753,31.35442371,122.52,122.5,8.22752421]
[1741757596948,31.35442371,122.52,122.5,0.06202421]
[1741757597148,31.35442371,122.52,122.51,8.1648]
[1741757598246,0.05442371,122.52,122.51,8.1648]
[1741757599050,35.5231,122.57,122.55,8.1617]
[1741757599352,35.5231,122.57,122.52,27.97964478]
[1741757600047,35.5231,122.57,122.53,0.06273811]
[1741757600250,0.05861003,122.56,122.53,0.06273811]
[1741757601254,0.05861003,122.56,122.55,8.1622]
[1741757602056,0.05861003,122.56,122.53,8.22623811]
[1741757602250,0.05861003,122.56,122.53,0.06273811]
[1741757603254,0.05861003,122.56,122.53,8.22573811]
[1741757603556,0.05861003,122.56,122.53,0.06273811]
[1741757603857,0.05861003,122.56,122.54,8.1628]
[1741757604057,0.05861003,122.56,122.53,0.06273811]
[1741757604453,0.05861003,122.56,122.54,8.1628]
[1741757605452,0.05861003,122.56,122.53,8.22603811]
[1741757605659,0.05861003,122.56,122.53,0.06273811]
[1741757606051,0.05861003,122.56,122.53,8.22583811]
[1741757606446,0.05861003,122.56,122.53,0.06273811]
[1741757606647,0.05861003,122.56,122.54,8.1628]
[1741757610055,0.05861003,122.56,122.53,0.06273811]
[1741757611456,0.05861003,122.56,122.54,8.1624]
[1741757611657,0.05861003,122.56,122.53,0.06273811]
[1741757611856,8.1622,122.55,122.53,0.06273811]
[1741757612165,0.05861003,122.56,122.53,0.06273811]
[1741757614763,0.05861003,122.56,122.53,8.22593811]
[1741757615860,8.22021003,122.56,122.53,0.06273811]
[1741757616367,0.05861003,122.56,122.53,0.06273811]
[1741757616863,0.05861003,122.56,122.53,8.22603811]
[1741757617167,0.05861003,122.56,122.53,0.06273811]
[1741757617363,17.53764352,122.56,122.53,0.06273811]
[1741757618068,8.1625,122.55,122.53,0.06273811]
[1741757618263,32.62,122.54,122.53,0.06273811]
[1741757619365,0.05861003,122.56,122.53,0.06273811]
[1741757619966,0.05861003,122.56,122.53,8.22603811]
[1741757620469,0.05861003,122.56,122.53,0.06273811]
[1741757620666,0.05861003,122.56,122.54,8.1627]
[1741757622771,0.05861003,122.56,122.53,0.06273811]
[1741757623172,0.05861003,122.56,122.53,8.22583811]
[1741757623569,0.05861003,122.56,122.53,0.06273811]
[1741757623770,0.05861003,122.56,122.55,8.1622]
[1741757625366,0.05861003,122.56,122.47,2.1277]
[1741757625575,17.47903349,122.53,122.47,2.1277]
[1741757625781,17.47903349,122.51,122.44,19.78493349]
[1741757625966,32.88,122.5,122.44,19.78493349]
[1741757626173,32.88,122.5,122.43,54.76915059]
[1741757626174,277.76,122.5,122.43,54.76915059]
[1741757626383,17.47903349,122.49,122.43,54.76915059]
[1741757626678,0.06233097,122.48,122.45,0.05345274]
[1741757626870,33.0,122.47,122.45,0.05345274]
[1741757627681,0.06233097,122.48,122.45,0.05345274]
[1741757628178,0.06233097,122.48,122.47,8.1675]
[1741757628975,33.0,122.51,122.49,8.1658]
[1741757629172,52.78503349,122.54,122.46,17.47903349]
[1741757629482,52.82503349,122.54,122.46,17.47903349]
[1741757629676,52.82503349,122.54,122.49,8.166]
[1741757630180,0.053944,122.53,122.5,0.0553469]
[1741757630978,0.053944,122.53,122.5,8.2207469]
[1741757634182,0.053944,122.53,122.51,8.1647]
[1741757636192,0.053944,122.53,122.5,0.0553469]
[1741757637795,8.217944,122.53,122.5,0.0553469]
[1741757640291,0.053944,122.53,122.5,0.0553469]
[1741757640793,0.053944,122.53,122.5,8.2203469]
[1741757641396,0.053944,122.53,122.5,0.0553469]
[1741757641600,8.1643,122.52,122.5,0.0553469]
[1741757642097,0.053944,122.53,122.5,0.0553469]
[1741757642299,8.217744,122.53,122.5,0.0553469]
[1741757642596,0.053944,122.53,122.5,0.0553469]
[1741757642997,8.217744,122.53,122.5,0.0553469]
[1741757643193,0.053944,122.53,122.5,0.0553469]
[1741757644792,0.053944,122.53,122.52,8.1642]
[1741757648595,0.053944,122.53,122.5,0.0553469]
[1741757649203,0.053944,122.53,122.5,8.2205469]
[1741757649402,0.053944,122.53,122.5,0.0553469]
[1741757649904,0.053944,122.53,122.52,8.1642]
[1741757656502,4.4e-05,122.53,122.52,8.1642]
[1741757656704,4.1403,122.6,122.52,50.03903349]
[1741757656911,34.5878,122.61,122.54,17.47903349]
[1741757657213,11.32936132,122.62,122.58,17.47903349]
[1741757657611,256.20936132,122.63,122.58,17.47903349]
[1741757658012,0.05532577,122.62,122.59,0.05771588]
[1741757658714,8.21332577,122.62,122.59,0.05771588]
[1741757658915,0.05532577,122.62,122.59,0.05771588]
[1741757659213,32.61532577,122.62,122.59,0.05771588]
[1741757659412,40.77332577,122.62,122.59,0.05771588]
[1741757660216,8.1584,122.61,122.59,0.05771588]
[1741757661317,17.47903349,122.61,122.48,2.023]
[1741757661518,17.47903349,122.59,122.49,19.64443349]
[1741757661718,32.8,122.58,122.51,17.47903349]
[1741757662119,32.8,122.58,122.53,8.163]
[1741757662324,32.8,122.58,122.51,17.47903349]
[1741757662515,0.05387214,122.57,122.54,8.21420429]
[1741757662917,0.05387214,122.57,122.54,0.05180429]
[1741757663822,8.21507214,122.57,122.54,0.05180429]
[1741757664015,0.05387214,122.57,122.54,0.05180429]
[1741757664728,0.05387214,122.57,122.54,8.21420429]
[1741757665020,32.82,122.61,122.55,17.47903349]
[1741757665222,32.82,122.61,122.55,21.78753349]
[1741757666023,32.82,122.61,122.57,8.1604]
[1741757666221,0.0558732,122.59,122.57,0.05471564]
[1741757667023,0.0558732,122.59,122.58,8.1602]
[1741757673629,277.64,122.63,122.61,8.1576]
[1741757674029,244.88,122.63,122.61,8.1576]
[1741757674221,23.89813349,122.65,122.57,50.05903349]
[1741757674425,244.76,122.68,122.61,17.47903349]
[1741757674832,0.06049055,122.66,122.64,8.1557]
[1741757675129,0.06049055,122.66,122.63,0.05553206]
[1741757675331,0.06049055,122.66,122.65,8.1555]
[1741757676129,21.64703349,122.69,122.63,32.69553206]
[1741757676333,17.47903349,122.65,122.63,0.05553206]
[1741757676528,50.17903349,122.65,122.59,8.1591]
[1741757676832,2.0039,122.64,122.57,17.47903349]
[1741757677032,2.0039,122.64,122.59,8.1591]
[1741757677634,0.05906307,122.63,122.6,0.05185395]
[1741757678025,0.05906307,122.63,122.6,8.21055395]
[1741757678226,0.05906307,122.63,122.6,0.05185395]
[1741757679032,0.05906307,122.63,122.6,8.21015395]
[1741757679233,0.05906307,122.63,122.6,0.05185395]
[1741757682431,0.05906307,122.63,122.61,8.1577]
[1741757683332,0.05906307,122.63,122.6,0.05185395]
[1741757684338,0.05906307,122.63,122.61,8.1577]
[1741757684537,0.05906307,122.63,122.6,0.05185395]
[1741757685135,17.53809656,122.63,122.6,0.05185395]
[1741757685840,17.53809656,122.63,122.6,8.21055395]
[1741757686342,0.05906307,122.63,122.6,0.05185395]
[1741757686538,6.307e-05,122.63,122.61,50.35903349]
[1741757686736,266.83206686,122.72,122.61,52.79903349]
[1741757687040,8.1524,122.7,122.65,8.1551]
[1741757687441,248.8868,122.72,122.63,17.47903349]
[1741757687641,8.1519,122.71,122.66,8.1548]
[1741757687835,41.0119,122.71,122.66,8.21700738]
[1741757688642,40.9719,122.71,122.66,8.21700738]
[1741757688844,32.82,122.71,122.68,8.1535]
[1741757689038,32.82,122.71,122.66,0.06220738]
[1741757689844,50.29903349,122.71,122.66,0.06220738]
[1741757690845,32.82,122.71,122.66,0.06220738]
[1741757691746,32.82,122.71,122.68,8.1535]
[1741757692046,32.82,122.71,122.66,0.06220738]
[1741757692345,50.29903349,122.71,122.66,0.06220738]
[1741757692846,8.1526,122.7,122.66,0.06220738]
[1741757693144,50.29903349,122.71,122.66,0.06220738]
[1741757693442,8.153,122.69,122.66,0.06220738]
[1741757694047,8.153,122.69,122.66,8.21700738]
[1741757695247,50.29903349,122.71,122.66,8.21700738]
[1741757695449,8.1528,122.7,122.66,0.06220738]
[1741757695747,8.1528,122.7,122.67,8.154]
[1741757697151,50.29903349,122.71,122.67,8.154]
[1741757697353,58.45083349,122.71,122.68,8.1535]
[1741757697548,58.45083349,122.71,122.66,0.06220738]
[1741757697847,58.45083349,122.71,122.67,8.1538]
[1741757698052,8.1523,122.7,122.67,8.1538]
[1741757698249,50.29903349,122.71,122.67,8.1538]
[1741757698446,50.29903349,122.71,122.66,8.21690738]
[1741757698646,8.1532,122.69,122.66,8.21690738]
[1741757699150,8.1526,122.7,122.67,8.1541]
[1741757700153,50.29903349,122.71,122.66,0.06220738]
[1741757700653,32.62,122.7,122.66,0.06220738]
[1741757700853,32.62,122.7,122.69,8.1529]
[1741757702459,32.62,122.7,122.68,8.1532]
[1741757702658,257.0378,122.72,122.68,8.1532]
[1741757702953,8.1519,122.71,122.69,0.05858572]
[1741757703170,17.47903349,122.71,122.64,32.84]
[1741757703457,8.1526,122.7,122.64,32.84]
[1741757703659,17.47903349,122.71,122.66,8.1548]
[1741757703854,17.47903349,122.71,122.63,17.47903349]
[1741757704354,0.06141136,122.68,122.66,0.05495463]
[1741757704566,0.06141136,122.68,122.66,8.20955463]
[1741757704958,0.06141136,122.68,122.66,8.20925463]
[1741757705158,0.06141136,122.68,122.66,0.05495463]
[1741757705656,253.60904529,122.8,122.67,17.47903349]
[1741757705657,262.07903349,122.77,122.67,17.47903349]
[1741757705851,295.07903349,122.77,122.69,17.47903349]
[1741757706453,295.07903349,122.77,122.68,33.0]
[1741757706648,17.47903349,122.75,122.71,0.05304865]
[1741757707053,25.62803349,122.75,122.71,8.20434865]
[1741757707249,17.47903349,122.75,122.71,8.20434865]
[1741757707459,17.47903349,122.75,122.71,0.05304865]
[1741757707962,32.98,122.74,122.71,0.05304865]
[1741757708159,17.47903349,122.73,122.71,0.05304865]
[1741757708361,31.91213349,122.73,122.71,0.05304865]
[1741757708662,31.91213349,122.73,122.64,72.63909]
[1741757708663,17.47903349,122.71,122.64,72.63909]
[1741757708957,58.65073349,122.71,122.66,8.1543]
[1741757709156,58.65073349,122.71,122.64,39.63909]
[1741757709562,0.05545727,122.69,122.67,8.1536]
[1741757710255,0.05545727,122.69,122.66,0.05767233]
[1741757710458,0.05545727,122.69,122.66,8.21237233]
[1741757710660,0.05545727,122.69,122.66,0.05767233]
[1741757711063,0.05545727,122.69,122.68,8.1535]
[1741757711457,0.05545727,122.69,122.67,8.1539]
[1741757712959,0.05545727,122.69,122.66,8.21227233]
[1741757713165,0.05545727,122.69,122.66,0.05767233]
[1741757713763,8.20875727,122.69,122.66,0.05767233]
[1741757714067,25.68779076,122.69,122.66,0.05767233]
[1741757714561,17.47903349,122.67,122.64,39.63909]
[1741757714762,17.47903349,122.65,122.64,36.30169]
[1741757715061,58.49453349,122.65,122.64,36.30169]
[1741757715263,50.33903349,122.65,122.57,17.47903349]
[1741757715460,50.33903349,122.65,122.59,8.1591]
[1741757715767,25.69192076,122.63,122.61,0.05737264]
[1741757716065,17.53482076,122.63,122.61,0.05737264]
[1741757719873,25.69172076,122.63,122.61,0.05737264]
[1741757720071,17.53482076,122.63,122.61,0.05737264]
[1741757720967,32.74,122.62,122.53,17.47903349]
[1741757721271,17.47903349,122.61,122.53,23.79513349]
[1741757722174,0.0592995,122.58,122.56,0.05858783]
[1741757722372,0.0592995,122.58,122.57,8.1608]
[1741757723576,295.09903349,122.7,122.57,2.44]
[1741757723774,295.09903349,122.7,122.59,17.47903349]
[1741757723775,19.65063349,122.68,122.59,17.47903349]
[1741757724569,0.05440224,122.65,122.63,8.1568]
[1741757724964,0.05440224,122.65,122.62,0.05895718]
[1741757725771,8.1566,122.64,122.62,0.05895718]
[1741757726075,17.47903349,122.64,122.62,0.05895718]
[1741757726269,50.47903349,122.64,122.62,0.05895718]
[1741757726664,52.53643349,122.64,122.62,0.05895718]
[1741757727270,8.1568,122.63,122.62,0.05895718]
[1741757728473,35.0574,122.64,122.57,33.0]
[1741757728678,33.0,122.64,122.58,2.0102]
[1741757729178,33.0,122.64,122.62,8.1571]
[1741757729378,33.0,122.64,122.58,2.0102]
[1741757729584,0.05719071,122.62,122.6,8.22036374]
[1741757730276,0.05719071,122.62,122.6,0.06186374]
[1741757730777,0.05719071,122.62,122.6,8.22056374]
[1741757731585,0.05719071,122.62,122.6,0.06186374]
[1741757732181,8.21479071,122.62,122.6,0.06186374]
[1741757733779,32.92,122.61,122.55,8.162]
[1741757733985,17.47903349,122.6,122.55,8.162]
[1741757734477,8.1598,122.59,122.55,8.162]
[1741757734684,17.47903349,122.6,122.56,8.1611]
[1741757735080,0.05197362,122.59,122.57,0.05261982]
[1741757735380,50.35903349,122.58,122.53,8.1632]
[1741757735683,8.1615,122.57,122.51,2.0585]
[1741757735884,8.1615,122.57,122.52,8.1638]
[1741757736188,8.1615,122.57,122.51,2.0585]
[1741757736485,0.05634048,122.55,122.53,0.05458691]
[1741757736885,0.05634048,122.55,122.53,8.21768691]
[1741757738483,0.05634048,122.55,122.54,8.1628]
[1741757740382,0.05634048,122.55,122.53,0.05458691]
[1741757741788,8.21884048,122.55,122.53,0.05458691]
[1741757741988,32.87634048,122.55,122.53,0.05458691]
[1741757743990,32.87634048,122.55,122.53,8.21788691]
[1741757744489,32.87634048,122.55,122.53,0.05458691]
[1741757745486,17.47903349,122.54,122.49,2.0152]
[1741757745682,17.47903349,122.54,122.49,8.1658]
[1741757745683,8.1637,122.53,122.49,8.1658]
[1741757745887,17.47903349,122.54,122.49,8.1658]
[1741757746299,8.1638,122.53,122.47,2.0593]
[1741757746592,8.21552733,122.53,122.5,0.05803061]
[1741757746894,0.05172733,122.53,122.5,8.22353061]
[1741757747191,0.05172733,122.53,122.5,0.05803061]
[1741757747493,0.05172733,122.53,122.5,8.22313061]
[1741757748588,8.21532733,122.53,122.5,8.22313061]
[1741757748793,0.05172733,122.53,122.5,8.22313061]
[1741757748988,0.05172733,122.53,122.5,0.05803061]
[1741757750093,0.05172733,122.53,122.52,8.1642]
[1741757750290,0.05172733,122.53,122.5,0.05803061]
[1741757750882,0.05172733,122.53,122.51,8.1645]
[1741757752288,0.05172733,122.53,122.5,8.22333061]
[1741757753501,0.05172733,122.53,122.51,8.1647]
[1741757753790,0.05172733,122.53,122.5,0.05803061]
[1741757753995,0.05172733,122.53,122.5,8.22313061]
[1741757754494,0.05172733,122.53,122.5,0.05803061]
[1741757754695,32.49172733,122.53,122.5,0.05803061]
[1741757755200,8.1642,122.52,122.5,0.05803061]
[1741757755694,32.49172733,122.53,122.5,0.05803061]
[1741757755895,32.49172733,122.53,122.51,8.1644]
[1741757756096,32.49172733,122.53,122.5,0.05803061]
[1741757756399,32.49172733,122.53,122.51,8.1644]
[1741757757300,32.49172733,122.53,122.5,0.05803061]
[1741757757497,0.05172733,122.53,122.52,8.1642]
[1741757759993,32.24,122.59,122.51,21.75883349]
[1741757760196,244.88,122.61,122.53,17.47903349]
[1741757760392,244.88,122.61,122.55,17.47903349]
[1741757760898,244.88,122.61,122.53,49.71903349]
[1741757761201,0.05875007,122.59,122.57,0.05348392]
[1741757761799,0.05875007,122.59,122.57,8.21408392]
[1741757761998,32.25875007,122.59,122.57,0.05348392]
[1741757762394,40.41875007,122.59,122.57,0.05348392]
[1741757762589,32.25875007,122.59,122.57,0.05348392]
[1741757763303,0.05875007,122.59,122.57,0.05348392]
[1741757763603,0.05875007,122.59,122.58,8.1602]
[1741757765300,8.1602,122.58,122.51,194.2798]
[1741757765499,17.47903349,122.56,122.51,4.2798]
[1741757766597,0.05514331,122.55,122.52,8.21890183]
[1741757768699,244.88,122.61,122.53,17.47903349]
[1741757768902,276.9,122.61,122.53,17.47903349]
[1741757769098,244.88,122.61,122.53,17.47903349]
[1741757769299,276.9,122.61,122.53,17.47903349]
[1741757769705,276.9,122.61,122.57,8.1605]
[1741757769909,0.06073968,122.58,122.57,8.1605]
[1741757771001,0.06073968,122.58,122.56,0.06139081]
[1741757772803,0.06073968,122.58,122.56,8.22259081]
[1741757773403,0.06073968,122.58,122.56,0.06139081]
[1741757774301,0.06073968,122.58,122.56,8.22259081]
[1741757775503,0.06073968,122.58,122.56,0.06139081]
[1741757776705,17.53977317,122.58,122.56,0.06139081]
[1741757777405,17.53977317,122.58,122.56,8.22229081]
[1741757777608,0.06073968,122.58,122.56,0.06139081]
[1741757777806,0.06073968,122.58,122.57,8.1608]
[1741757778103,0.06073968,122.58,122.56,0.06139081]
[1741757778709,0.06073968,122.58,122.56,8.22259081]
[1741757779208,17.53977317,122.58,122.56,8.22289081]
[1741757781314,0.06073968,122.58,122.56,8.22289081]
[1741757781910,0.06073968,122.58,122.57,8.1608]
[1741757782110,17.53977317,122.58,122.51,4.2798]
[1741757782310,17.47903349,122.56,122.51,4.2798]
[1741757783109,17.47903349,122.56,122.53,8.163]
[1741757783313,0.05175866,122.55,122.52,0.05907534]
[1741757784213,0.05175866,122.55,122.54,8.1628]
[1741757788603,5.866e-05,122.55,122.54,8.1628]
[1741757791419,5.866e-05,122.55,122.52,190.05907534]
[1741757791715,5.866e-05,122.55,122.52,0.05907534]
[1741757792520,5.866e-05,122.55,122.52,8.22287534]
[1741757793216,5.866e-05,122.55,122.52,0.05907534]
[1741757793423,5.866e-05,122.55,122.53,8.1635]